Cogmind - Beta 10.1 @@@ ROGUE MODE // 2020.10.14 @ 11:09:53 Player: Pimski Result: Destroyed by 7V-RTL with Railgun Performance ------------- Evolutions (1) 500 Regions Visited (6) 1200 Robots Destroyed (103) 515 Value Destroyed (1960) 1960 Prototype IDs (31) 620 Alien Tech Used (0) 0 Bonus (137) 137 TOTAL SCORE: 4932 Bonus ------- Follower Combat Kills 50 Aligned with FarCom 300 Friendly Fire -213 Cogmind --------- Core Integrity 0/400 Matter 275/300 Energy 310/310 System Corruption 0% Temperature Cool (0) Movement Treading (220) Ox3 Location -8/Mines Parts ------- > --- POWER (1) -------- Reinforced Fission Core > --- PROPULSION (2) --- Light Treads Light Treads > --- UTILITY (4) ------ High-capacity Storage Unit High-capacity Storage Unit High-capacity Storage Unit > --- WEAPON (2) ------- Mining Claw Mining Claw > --- INVENTORY (28) --- Makeshift Power Source Makeshift Power Source Compact Wheel Improved Flight Unit Improved Flight Unit Improved Flight Unit Improved Flight Unit Improved Flight Unit Gravity Neutralizing Apparatus Gravity Neutralizing Apparatus Experimental Targeting Computer Heavy Armor Plating System Purifier Chronowheel Heavy Assault Rifle Heavy Assault Rifle Improved Assault Rifle Gauss Rifle 8R-AWN's Boregun Field Lobotomy Kit Katana Katana Peak State ------------ > --- POWER ------------ Reinforced Fission Core > --- PROPULSION ------- Light Treads Improved Treads > --- UTILITY ---------- High-capacity Storage Unit High-capacity Storage Unit System Purifier > --- WEAPON ----------- Heavy Assault Rifle Improved Assault Rifle > --- INVENTORY -------- Light Treads Light Treads Medium Battery Gravity Neutralizing Apparatus Gravity Neutralizing Apparatus Experimental Targeting Computer Light Armor Plating Light Armor Plating Heavy Armor Plating Heavy Assault Rifle Heavy Assault Rifle 8R-AWN's Boregun Mining Claw Mining Claw Mining Claw Katana Katana Deploy-a-Sentry Deploy-a-Sentry [Rating: 31] Favorites ----------- Power Reinforced Fission Core Engine Light Ion Engine Power Core Reinforced Fission Core Propulsion Light Treads Treads Light Treads Leg Aluminum Leg Wheel Wheel Utility High-capacity Storage Unit Device Improved Terrain Scanner Storage High-capacity Storage Unit Protection Light Armor Plating Weapon Heavy Assault Rifle Energy Gun Medium Laser Ballistic Gun Heavy Assault Rifle Launcher Shock Bomb Launcher Slashing Weapon Mining Claw Build | -11 -10 -10 -9 -9 -9 -8 ------- Run | Scr Mat Min Mat Min Exi Min Slots Evolved 2 | . . . 2 . . . Power . | . . . . . . . Propulsion . | . . . . . . . Utility 2 | . . . 2 . . . Weapon . | . . . . . . . Parts Attached 76 | 1 4 13 27 5 22 4 Power 6 | . . 3 2 . 1 . Engine 5 | . . 3 2 . . . Core 1 | . . . . . 1 . Reactor . | . . . . . . . Propulsion 17 | . 2 4 5 3 1 2 Treads 12 | . 2 . 5 2 1 2 Leg 2 | . . 2 . . . . Wheel 3 | . . 2 . 1 . . Hover . | . . . . . . . Flight . | . . . . . . . Utility 21 | 1 2 . 6 2 10 . Device 4 | 1 . . . . 3 . Storage 9 | . 2 . 2 1 4 . Processor . | . . . . . . . Hackware . | . . . . . . . Protection 8 | . . . 4 1 3 . Artifact . | . . . . . . . Weapon 32 | . . 6 14 . 10 2 Energy Gun 2 | . . 2 . . . . Energy Cannon . | . . . . . . . Ballistic Gun 17 | . . 2 9 . 6 . Ballistic Cannon . | . . . . . . . Launcher 7 | . . 2 4 . 1 . Special Weapon . | . . . . . . . Impact Weapon . | . . . . . . . Slashing Weapon 6 | . . . 1 . 3 2 Piercing Weapon . | . . . . . . . Special Melee Weapon . | . . . . . . . Unidentified Prototypes 6 | . . . 2 . 4 . Parts Lost 18 | . . 4 6 2 3 3 Power 3 | . . . 2 1 . . Propulsion 9 | . . 2 4 . 1 2 Utility 3 | . . . . 1 1 1 Weapon 3 | . . 2 . . 1 . Highest Loss Streak 3 | . . 2 1 2 3 2 Average Slot Usage (%) 91 | . 98 99 93 88 85 97 Engine 5 | . 14 14 7 . . . Core 2 | . . . . . 3 11 Treads 20 | . 27 17 16 21 22 22 Wheel 2 | . . 6 5 . . . Storage 29 | . 26 28 30 33 29 33 Protection 6 | . . . 10 11 7 8 Energy Gun 3 | . 14 13 1 . . . Ballistic Gun 18 | . 14 13 20 22 20 15 Naked Turns . | . . . . . . . Heaviest Build 155 | 12 71 73 112 108 155 126 Greatest Support 43 | 20 40 40 43 43 43 43 Greatest Overweight (x) 7 | . 1 7 5 6 3 3 Average Overweight (x) 2 | . . 4 3 2 1 2 Largest Inventory Capacity 36 | 6 20 20 28 28 36 28 Average Capacity 24 | 6 18 20 26 28 25 28 Most Carried 32 | 6 20 20 28 28 32 28 Average Carried 23 | 6 15 19 25 27 23 27 Final Capacity 28 | 6 20 20 28 28 28 28 Final Carried 28 | 6 20 20 28 28 28 23 Class Distribution -------------------- 99% | Hauler-Mutant Dominant Class ---------------- Hauler-Mutant | -10/Materials Hauler-Mutant | -10/Mines Hauler-Mutant | -9/Materials Hauler-Mutant | -9/Mines Hauler-Mutant | -9/Exiles Hauler-Mutant | -8/Mines Resources | -11 -10 -10 -9 -9 -9 -8 ----------- Run | Scr Mat Min Mat Min Exi Min Matter Collected 2419 | 228 82 299 807 94 873 36 Remotely . | . . . . . . . Salvage Created 3412 | 116 236 820 1506 237 447 50 Parts 189 | 3 17 39 94 3 31 2 Haulers Intercepted 4 | . . . 4 . . . Recyclers Shooed 6 | . 1 2 2 . . 1 Parts Field Recycled . | . . . . . . . Retrieved Matter . | . . . . . . . Parts Self-Destructed . | . . . . . . . Prevented . | . . . . . . . Kills | -11 -10 -10 -9 -9 -9 -8 ------- Run | Scr Mat Min Mat Min Exi Min Combat Hostiles Destroyed 70 | . 3 17 30 12 7 1 Guns 49 | . 3 13 18 12 2 1 AOE 20 | . . 4 11 . 5 . Classes Destroyed 13 | 2 2 2 4 1 1 1 Worker 6 | . 2 1 3 . . . Tunneler 4 | 1 . 3 . . . . Hauler 4 | . . . 4 . . . Recycler 6 | 1 1 3 1 . . . Watcher 4 | . . . 4 . . . Swarmer 12 | . . 3 9 . . . Grunt 30 | . 3 13 13 1 . . Duelist 4 | . . . 3 1 . . Sentry 5 | . . . 5 . . . Demolisher 1 | . . . . 1 . . Hunter 1 | . . . . . . 1 Zionite 8 | . . . . . 8 . Assembled 16 | . . 1 . 9 6 . Best Kill Streak 8 | 2 2 8 7 7 6 1 Combat Bots Only 7 | . 2 5 7 7 6 1 Max Kills in Single Turn 3 | 1 1 2 3 1 2 1 Gunslinging . | . . . . . . . Exploded 3 | . . 2 3 . 2 . Melee . | . . . . . . . Uniques/NPCs Destroyed 4 | . . . . . 4 . EX-DEC (-9/Exiles) EX-HEX (-9/Exiles) 8R-AWN (-9/Exiles) EX-BIN (-9/Exiles) Combat | -11 -10 -10 -9 -9 -9 -8 -------- Run | Scr Mat Min Mat Min Exi Min Damage Taken 4163 | . 47 726 1191 645 772 782 Core 552 | . 11 125 156 98 23 139 Absorbed by Shields . | . . . . . . . Core Remaining (%) 72 | 100 . 45 . . . . Volleys Fired 301 | 6 14 64 98 34 79 6 Largest 2 | 2 2 2 2 2 2 2 Hottest 70 | 70 70 70 63 46 46 46 Shots Fired 521 | 12 28 121 185 68 95 12 Gun 499 | 12 28 116 175 68 88 12 Cannon . | . . . . . . . Launcher 22 | . . 5 10 . 7 . Special . | . . . . . . . Kinetic 417 | 6 14 58 171 68 88 12 Thermal 82 | 6 14 58 4 . . . Explosive 8 | . . 5 3 . . . Electromagnetic 14 | . . . 7 . 7 . Robot Hit Streak 34 | 5 11 15 34 13 8 12 Robot Miss Streak 5 | 3 2 2 5 4 4 . Penetration Max . | . . . . . . . Secondary Targets 5 | . . 2 1 1 1 . Max Gunslinging Chain 1 | . . 1 1 1 1 . Shots Hit Robots 395 | 9 21 94 138 45 68 20 Core Hits 185 | 3 12 50 60 21 34 5 Critical Hits 20 | . . 2 . . 18 . Critical Kills 1 | . . 1 . . . . Critical Parts Destroyed 4 | . . 1 . . 3 . Melee Attacks 23 | . . . 3 . 8 12 Impact . | . . . . . . . Slashing 23 | . . . 3 . 8 12 Piercing . | . . . . . . . Sneak Attacks . | . . . . . . . Combat Hostiles . | . . . . . . . Follow-up Attacks 5 | . . . . . 2 3 Damage Inflicted 7012 | 115 257 1419 2722 624 1539 336 Guns 5013 | 115 248 1009 1870 624 1017 130 Cannons . | . . . . . . . Explosions 1589 | . . 404 827 . 358 . Melee 370 | . . . . . 164 206 Ramming 40 | . 9 6 25 . . . Kinetic 4230 | 52 108 461 1838 624 1017 130 Thermal 957 | 63 140 548 206 . . . Explosive 659 | . . 404 255 . . . Electromagnetic 756 | . . . 398 . 358 . Impact . | . . . . . . . Slashing 370 | . . . . . 164 206 Piercing . | . . . . . . . Highest Corruption . | . . . . . . . Average Corruption . | . . . . . . . Corruption Purged . | . . . . . . . Overload Shots . | . . . . . . . Overflow Damage 30 | . . 3 9 . 18 . Projectiles . | . . . . . . . Explosions 30 | . . 3 9 . 18 . Melee . | . . . . . . . Knockbacks . | . . . . . . . Impact . | . . . . . . . Kinetic . | . . . . . . . Secondary . | . . . . . . . Self-Inflicted Damage . | . . . . . . . Shots . | . . . . . . . Rammed 4 | . 1 1 2 . . . Targets Rammed 4 | . 1 1 2 . . . Kicked . | . . . . . . . Crushed . | . . . . . . . Highest Temperature 198 | 36 60 198 75 10 40 30 Average Temperature 38 | 15 17 57 20 2 21 13 Received Heat Transfer 1059 | . 24 463 354 50 60 108 Siege Activations . | . . . . . . . Robots Corrupted 1 | . . . 1 . . . Combat Hostiles 1 | . . . 1 . . . Parts Fried 1 | . . . 1 . . . Impact Corruptions . | . . . . . . . Robots Melted . | . . . . . . . Combat Hostiles . | . . . . . . . Parts Melted 3 | . . 3 . . . . Heat Transferred 2423 | 185 407 1556 275 . . . Parts Sabotaged . | . . . . . . . Parts Stolen . | . . . . . . . Parts Stripped . | . . . . . . . Power Chain Reactions 5 | . . . 5 . . . Missiles Intercepted . | . . . . . . . Alert | -11 -10 -10 -9 -9 -9 -8 ------- Run | Scr Mat Min Mat Min Exi Min Peak Influence 329 | 10 151 243 329 170 . 30 Initial 95 | . 6 58 33 95 . . Average 137 | 7 85 97 201 160 . 10 Maximum Alert Level 1 | . . 1 1 . . . Low Security (%) 72 | 100 100 86 44 100 . 100 Level 1 27 | . . 13 55 . . . Level 2 . | . . . . . . . Level 3 . | . . . . . . . Level 4 . | . . . . . . . Level 5 . | . . . . . . . High Security . | . . . . . . . Max Security . | . . . . . . . Squads Dispatched 2 | . 2 . . . . . Investigation 1 | . 1 . . . . . Extermination . | . . . . . . . Reinforcement 1 | . 1 . . . . . Assault . | . . . . . . . Garrison . | . . . . . . . Intercept . | . . . . . . . Construction Impeded . | . . . . . . . Haulers Reinforced . | . . . . . . . Stealth | -11 -10 -10 -9 -9 -9 -8 --------- Run | Scr Mat Min Mat Min Exi Min Distress Signals 3 | . . . 2 1 . . Communications Jammed . | . . . . . . . Distress Signals . | . . . . . . . Times Spotted 103 | . 7 23 40 13 18 2 Peak Tracking Total 9 | . 2 6 6 3 9 2 Tactical Retreats 9 | . . 4 3 . 2 . Traps | -11 -10 -10 -9 -9 -9 -8 ------- Run | Scr Mat Min Mat Min Exi Min Traps Triggered 1 | . . . 1 . . . Indirectly 1 | . . . 1 . . . Trap Hack Attempts . | . . . . . . . Triggered . | . . . . . . . Disarmed . | . . . . . . . Reprogrammed . | . . . . . . . Reused 3 | . . . . . 3 . Traps Extracted . | . . . . . . . Installed 3 | . . . . . 3 . Triggered . | . . . . . . . Machines | -11 -10 -10 -9 -9 -9 -8 ---------- Run | Scr Mat Min Mat Min Exi Min Machines Disabled 9 | . . 1 . . 8 . Max in Single Turn 1 | . . 1 . . 1 . Machines Sabotaged . | . . . . . . . Garrisons Compromised . | . . . . . . . Overloaded Fab Kills . | . . . . . . . Fab Network Shutdowns . | . . . . . . . Hacking | -11 -10 -10 -9 -9 -9 -8 --------- Run | Scr Mat Min Mat Min Exi Min Machines Accessed 9 | . 2 . 5 . 2 . Terminals 6 | . 1 . 5 . . . Fabricators . | . . . . . . . Repair Stations . | . . . . . . . Recycling Units 1 | . 1 . . . . . Scanalyzers . | . . . . . . . Garrison Access . | . . . . . . . Total Hacks 18 | . 3 . 13 . 2 . Successful 13 | . 2 . 9 . 2 . Failed 4 | . 1 . 3 . . . Catastrophic 1 | . . . 1 . . . Database Lockouts 1 | . . . 1 . . . Manual 15 | . 3 . 11 . 1 . Terminals 15 | . 2 . 13 . . . Fabricators . | . . . . . . . Repair Stations . | . . . . . . . Recycling Units 1 | . 1 . . . . . Scanalyzers . | . . . . . . . Garrison Access . | . . . . . . . Terminal Hacks 9 | . 1 . 6 . 2 . Record 1 | . . . . . 1 . Robot Analysis 1 | . . . 1 . . . Prototype ID Bank 1 | . . . 1 . . . Branch Access Points 2 | . 1 . 1 . . . Unreport Threat 1 | . . . 1 . . . Hauler Manifests 1 | . . . 1 . . . Zone Layout 1 | . . . 1 . . . EX-Prototype ID Bank 1 | . . . . . 1 . Fabricator Hacks . | . . . . . . . Repair Station Hacks . | . . . . . . . Recycling Unit Hacks . | . . . . . . . Scanalyzer . | . . . . . . . Garrison Access Hacks . | . . . . . . . Unauthorized Hacks 4 | . 1 . 3 . . . Terminals 3 | . . . 3 . . . Botnet 2 | . . . 2 . . . Operators 1 | . . . 1 . . . Fabricators . | . . . . . . . Repair Stations . | . . . . . . . Recycling Units 1 | . 1 . . . . . Tunnel 1 | . 1 . . . . . Scanalyzers . | . . . . . . . Garrison Access . | . . . . . . . Data Cores Recovered . | . . . . . . . Used . | . . . . . . . Hacking Detections 5 | . . . 5 . . . Full Trace Events . | . . . . . . . Feedback Events . | . . . . . . . Feedback Blocked . | . . . . . . . Robot Schematics Acquired . | . . . . . . . Robots Built . | . . . . . . . Matter . | . . . . . . . Time . | . . . . . . . Total Robot Build Rating . | . . . . . . . Part Schematics Acquired . | . . . . . . . Parts Built . | . . . . . . . Matter . | . . . . . . . Time . | . . . . . . . Total Part Build Rating . | . . . . . . . Parts Repaired . | . . . . . . . Time . | . . . . . . . Parts Recycled . | . . . . . . . Recycled Matter . | . . . . . . . Retrieved Matter . | . . . . . . . Retrieved Components . | . . . . . . . Parts Scanalyzed . | . . . . . . . Part Schematics Acquired . | . . . . . . . Parts Damaged . | . . . . . . . Bothacking | -11 -10 -10 -9 -9 -9 -8 ------------ Run | Scr Mat Min Mat Min Exi Min Used RIF Installer . | . . . . . . . Robots Hacked . | . . . . . . . Non-combat . | . . . . . . . Combat . | . . . . . . . Robot Hacks Applied . | . . . . . . . Relay Couplers Released . | . . . . . . . Robots Rewired . | . . . . . . . Allies Hacked . | . . . . . . . Hacks Repelled . | . . . . . . . Allies | -11 -10 -10 -9 -9 -9 -8 -------- Run | Scr Mat Min Mat Min Exi Min Total Allies 1 | . . 1 . . . . Largest Group 1 | . . 1 1 . . . Highest-Rated Group 31 | . . 31 31 . . . Highest-Rated Ally 31 | . . 31 31 . . . Total Orders . | . . . . . . . Ally Attacks 53 | . . 9 1 . 23 20 Total Damage 2265 | . . 128 21 . 1213 903 Kills 5 | . . 2 . . 3 . Allies Corrupted . | . . . . . . . Allies Melted . | . . . . . . . Turrets Deployed 3 | . . . . . 2 1 Intel | -11 -10 -10 -9 -9 -9 -8 ------- Run | Scr Mat Min Mat Min Exi Min Robot Analysis Total 1 | . . . 1 . . . Derelict Logs Recovered 2 | . . 2 . . . . Drone Launches . | . . . . . . . Drone Recoveries . | . . . . . . . Exploration | -11 -10 -10 -9 -9 -9 -8 ------------- Run | Scr Mat Min Mat Min Exi Min Turns Passed 7854 | 43 330 1582 1628 322 3754 195 Spaces Moved 3251 | 20 128 593 633 105 1732 40 Core . | . . . . . . . Treads 2572 | . 122 148 438 92 1732 40 Legs 26 | 20 6 . . . . . Wheels 653 | . . 445 195 13 . . Hover . | . . . . . . . Flight . | . . . . . . . Fastest Speed 110 | 120 120 110 110 160 180 200 Average Speed 184 | 120 175 148 181 195 197 205 Slowest Speed 260 | 120 180 220 260 200 220 220 Overloaded Moves . | . . . . . . . Propulsion Burnouts . | . . . . . . . Robots Hopped . | . . . . . . . Cave-ins Triggered . | . . . . . . . Exploration Rate (%) 44 | 3 27 99 57 24 88 11 Regions Visited 6 Branch Regions 4 Pre-discovered Areas 3 | . 1 1 . . 1 . Known Exits Taken 2 | . 1 . 1 . . . Unknown Exits Taken 4 | 1 . 1 . 1 1 . Scrap Searched 1 | . . 1 . . . . Spaces Dug 9 | . . . 9 . . . Terrain Destroyed 78 | . . 31 39 . 8 . Melee 3 | . . . 3 . . . Projectile 8 | . . . . . 8 . AOE 67 | . . 31 36 . . . Terrain Rammed . | . . . . . . . Walls Destroyed . | . . . . . . . Machines Disabled . | . . . . . . . Actions | -11 -10 -10 -9 -9 -9 -8 --------- Run | Scr Mat Min Mat Min Exi Min Total 4578 | 26 207 1174 927 155 1967 122 Wait 731 | . 35 487 97 6 48 58 Move 3245 | 19 127 592 632 104 1731 40 Hop . | . . . . . . . Pick Up 103 | . 19 8 36 3 36 1 Fast Attach 17 | 1 2 2 6 . 6 . Attach 24 | . 2 4 7 2 7 2 Detach 4 | . . . 1 . 3 . Swap 36 | . . 7 15 3 9 2 Drop 92 | . 7 9 30 3 39 4 Fire 301 | 6 14 64 98 34 79 6 Melee 18 | . . . 3 . 6 9 Ram . | . . . . . . . Kick . | . . . . . . . Crush 4 | . 1 1 2 . . . Escape Stasis . | . . . . . . . Rewire . | . . . . . . . Trap 3 | . . . . . 3 . Miscellaneous . | . . . . . . . Route ------- -11/Scrapyard -10/Materials (discovered 2 exits: *Min x2) -10/Mines (discovered 2 exits: *Mat x2) -9/Materials (discovered 2 exits: [*Mat] / *Min) -9/Mines -9/Exiles -8/Mines (discovered 1 exit: [*Mat]) History --------- Turn | Location | Event 8 | -11/Scrapyard | Discovered new exit (range 3) 44 | -11/Scrapyard | Entered Materials 309 | -10/Materials | Identified exit to Mines 374 | -10/Materials | Entered Mines 391 | -10/Mines | Build established: Hauler-Mutant 571 | -10/Mines | Discovered new exit (range 10) 702 | -10/Mines | Excavation squad dispatched 702 | -10/Mines | A large section of the Mines collapsed 952 | -10/Mines | Excavation squad dispatched 1365 | -10/Mines | Learned location of Storage (-7) 1380 | -10/Mines | Learned Materials garrison access intel 1407 | -10/Mines | Discovered new exit (range 13) 1532 | -10/Mines | Core integrity fell below 50% 1783 | -10/Mines | Received a Mining Laser from a helpful Derelict 1956 | -10/Mines | Entered Materials 1956 | -9/Materials | Accompanied by 1 ally 1956 | -9/Materials | Evolved 2 slots: Utility x2 2041 | -9/Materials | Identified exit to Mines 2041 | -9/Materials | Central database locked down 2296 | -9/Materials | Destroyed 7 combat bots 2417 | -9/Materials | Discovered new exit (range 7) 3584 | -9/Materials | Entered Mines 3585 | -9/Mines | Assembled infested the area 3606 | -9/Mines | Met a Derelict bent on vengeance 3621 | -9/Mines | Core integrity fell below 50% 3667 | -9/Mines | Destroyed 7 combat bots 3784 | -9/Mines | Found a hidden stash of uninstalled traps 3898 | -9/Mines | Deemed a non-threat by the Exiles lab entrance 3898 | -9/Mines | Discovered new exit (range 5) 3906 | -9/Mines | Entered Exiles 3940 | -9/Exiles | Discovered new exit (range 15) 3980 | -9/Exiles | Met 8R-AWN 4012 | -9/Exiles | Met EX-HEX 4118 | -9/Exiles | Met EX-DEC 4150 | -9/Exiles | Learned location of Zion (-7) 4469 | -9/Exiles | Met EX-BIN 4832 | -9/Exiles | Aligned with FarCom system 4834 | -9/Exiles | Given EX-Vault access code 4880 | -9/Exiles | Opened EX-Vault 4890 | -9/Exiles | Found Chronowheel 4899 | -9/Exiles | Found Field Lobotomy Kit 4906 | -9/Exiles | Found Deploy-a-Sentry 4910 | -9/Exiles | Found Deploy-a-Sentry 4914 | -9/Exiles | Found Deploy-a-Sentry 4952 | -9/Exiles | Warned to stay clear of 0b10 Research branches 5033 | -9/Exiles | DAS Turret deployed 5034 | -9/Exiles | DAS Turret deployed 5982 | -9/Exiles | Attacked by the Exiles 5985 | -9/Exiles | Allies destroyed EX-DEC 6011 | -9/Exiles | Allies destroyed EX-HEX 6038 | -9/Exiles | Found 8R-AWN's Boregun 6046 | -9/Exiles | Lost 3 parts (1n1u1w) 6333 | -9/Exiles | Destroyed 8R-AWN 6361 | -9/Exiles | Found Prototype Processor 6414 | -9/Exiles | Found Deploy-a-Sentry 6525 | -9/Exiles | Destroyed EX-BIN 6547 | -9/Exiles | Found Prototype Device 6547 | -9/Exiles | Identified System Purifier 7660 | -9/Exiles | Stole three prototypes: Chronowheel, Field Lobotomy Kit, Deploy-a-Sentry 7660 | -9/Exiles | Entered Mines 7672 | -8/Mines | Discovered new exit (range 15) 7792 | -8/Mines | 7V-RTL came to Exiles' defense 7814 | -8/Mines | DAS Turret deployed 7814 | -8/Mines | Core integrity fell below 20% 7855 | -8/Mines | Destroyed by 7V-RTL with Railgun Last Messages --------------- 07817_ Penetrated by Slug. 07817_ Slug penetrates Wall. 07823_ Mining Claw follow-up attack on 7V-RTL. 07828_ U-05 Engineer builds a Wall. 07828_ Penetrated by Slug. 07828_ Slug penetrates Wall. 07831_ U-05 Engineer builds a Wall. 07837_ Penetrated by Slug. 07837_ Slug penetrates Wall. 07839_ U-05 Engineer builds a Wall. 07845_ K-01 Serf collects debris. 07845_ U-05 Engineer builds a Wall. 07847_ Penetrated by Slug. 07847_ Lgt. Treads destroyed. 07847_ U-05 Engineer destroyed. 07849_ K-01 Serf collects debris. 07850_ U-05 Engineer builds a Wall. 07852_ K-01 Serf collects debris. 07855_ Dropped Deploy-a-Sentry. 07855_ Penetrated by Slug. Map ----- +----------------------------------------------------+ | ?????????????????????????????????? | | ?????????????????????????????????? | | ?????????????????????????????????? | | ?????????????????????????????????? | | ?????????????????????????????????? | | ?????????????????????????????????? | | ????????????????? ??????????????? | | ????????????????? #?????????????? | | ????????????????? #?????????????? | | ????????????????# #?????????????? | | ????????????????# #?????????????? | | ????????????????# #?????????????? | | ????????????????# #?????????????? | | ????????????????# #?????????????? | | ?????###????????# #?????????????? | | ###### #???????# #?????????????? | | ? ##?????# #?????????????? | | ??? ????# #?????????????? | | ?????# ???## ##????????????? | | ?????# ?## #????????????? | | ?????# ## #?????##?????? | | ?????? """" ##??## ###???? | | ?????? """" r #?#####;#???? | | ?????? """" ### r ###u ###?? | | ????? #??# =%!Y # #?? | | ????## #???# ###;t@ < ###?? | | ?????# ????## #### #???? | | ?????## ??????## k # #?? | | ??????####???????# #### ###?? | | ?????????????????# #??### ###???? | | ????????????????? ???? ## ???? | | ????????????????? ##???# #?##??? | | ???????????????? #????# #?????? | | ???????????????? #????# #?????? | | ???????????????? #????? #?????? | | ??????????????? #????? #?????? | | ???????????????# ????? #?????? | | ???????????????? """ ????? #?????? | | ?????????????????????????? ??????? | | ??????????????????????????#??????? | | ?????????????????????????????????? | | ?????????????????????????????????? | | ?????????????????????????????????? | | ?????????????????????????????????? | | ?????????????????????????????????? | | ?????????????????????????????????? | | ?????????????????????????????????? | | ?????????????????????????????????? | | ?????????????????????????????????? | | ?????????????????????????????????? | +----------------------------------------------------+ Best States ------------- Heat Dissipation 28 Energy Generation 19 Energy Capacity 310 Matter Stores 300 Matter Capacity 300 Sight Range 16 Terrain Scan Range 16 Terrain Scan Density 10 Armor Coverage 600 Evasion (%) 40 Recoil Reduction 2 Item Schematics ----------------- None Robot Schematics ------------------ None Fabricated ------------ Nothing Alien Tech Used ----------------- None Achievements -------------- None Challenges ------------ None Game ------ Seed SlugDirtyDissipator Manual? 0 Play Time 00:47:51 Cumulative 763.1 hours Start 2020.10.14 @ 10:21:12 End 2020.10.14 @ 11:09:53 Sessions 1 Manual Loads 0 Difficulty Rogue Special Mode None Game No. 484 Rogue 484 Adventurer 0 Explorer 0 Win Type - Total 112 Types 76/7/8/10/5/1/4/0/1 Lore% 96 Gallery% 94 Achievement% 81 Wizard Run 0 Options --------- ASCII 0 Keyboard 0 Movement Numpad Keybinds 0 Fullscreen 2 Font 18/SmallcapsGlow Map View 76x50 Tactical HUD 1 Map Filters NONE Filters NONE Steam 1 RUN: 3c06dca7-fcdb-42b0-b838-78bb8b433eb6